Cogmind - Beta 17.1 @@@ ROGUE MODE // 2026.09.06 @ 13:56:23 Player: frazz Result: Destroyed by S-10 Pest with Light Assault Rifle Performance ------------- Evolutions (2) 1000 Regions Visited (7) 1400 Robots Destroyed (55) 275 Value Destroyed (1686) 1686 Prototype IDs (24) 480 Alien Tech Used (0) 0 Bonus (389) 389 TOTAL SCORE: 5230 Bonus ------- Follower Combat Kills 89 Aligned with FarCom 300 Cogmind --------- Core Integrity 0/550 Matter 414/500 Energy 99/100 System Corruption 0% Temperature Cool (0) Movement Walking (97) Location -8/Materials Parts ------- > --- POWER (2) -------- (None) > --- PROPULSION (3) --- Aluminum Leg Potential Leg > --- UTILITY (4) ------ High-capacity Matter Pod Improved Salvage Targeting Computer > --- WEAPON (2) ------- Gatling Laser > --- INVENTORY (5) ---- Aluminum Leg Small Storage Unit Gatling Laser Advanced Assault Cannon Advanced Assault Cannon Peak State ------------ > --- POWER ------------ Improved Ion Engine Light Nuclear Core > --- PROPULSION ------- Titanium Leg Potential Leg Potential Leg > --- UTILITY ---------- Improved Heat Sink Small Storage Unit High-capacity Matter Pod Improved Salvage Targeting Computer > --- WEAPON ----------- Heavy Mace Great Maul > --- INVENTORY -------- Light Deuterium Engine Aluminum Leg Aluminum Leg Small Storage Unit [Rating: 43] Favorites ----------- Power Ion Engine Engine Ion Engine Power Core Light Nuclear Core Propulsion Aluminum Leg Leg Aluminum Leg Utility Small Storage Unit Device Seismic Detector Storage Small Storage Unit Processor Improved Salvage Targeting Computer Protection Light Armor Plating Weapon Light Assault Rifle Energy Gun Medium Laser Ballistic Gun Light Assault Rifle Ballistic Cannon Advanced Assault Cannon Launcher Grenade Launcher Impact Weapon Great Maul Build | -11 -10 -10 -9 -9 -9 -8 -8 ------- Run | Yrd Mat Min Mat Min Exi Min Mat Slots Evolved 4 | . . . 2 . . . 2 Power 1 | . . . . . . . 1 Propulsion 1 | . . . 1 . . . . Utility 2 | . . . 1 . . . 1 Weapon . | . . . . . . . . Parts Attached 57 | 7 3 8 11 9 2 1 16 Power 11 | 1 . 2 1 2 . . 5 Engine 9 | 1 . 2 1 1 . . 4 Core 2 | . . . . 1 . . 1 Reactor . | . . . . . . . . Propulsion 17 | 2 2 2 3 3 2 . 3 Treads . | . . . . . . . . Leg 17 | 2 2 2 3 3 2 . 3 Wheel . | . . . . . . . . Hover . | . . . . . . . . Flight . | . . . . . . . . Utility 13 | 2 . 2 3 2 . 1 3 Device 5 | 1 . . 1 1 . 1 1 Storage 3 | 1 . 1 . . . . 1 Processor 3 | . . . 1 1 . . 1 Hackware . | . . . . . . . . Protection 2 | . . 1 1 . . . . Artifact . | . . . . . . . . Weapon 16 | 2 1 2 4 2 . . 5 Energy Gun 6 | 1 1 1 . 1 . . 2 Energy Cannon . | . . . . . . . . Ballistic Gun 6 | 1 . . 4 1 . . . Ballistic Cannon 1 | . . . . . . . 1 Launcher 1 | . . 1 . . . . . Special Weapon . | . . . . . . . . Impact Weapon 2 | . . . . . . . 2 Slashing Weapon . | . . . . . . . . Piercing Weapon . | . . . . . . . . Special Melee Weapon . | . . . . . . . . Unidentified Prototypes 1 | . . . . 1 . . . Parts Lost 31 | . 1 2 3 7 . . 18 Power 8 | . . . . 2 . . 6 Propulsion 9 | . . 1 1 3 . . 4 Utility 6 | . . 1 2 . . . 3 Weapon 8 | . 1 . . 2 . . 5 Highest Loss Streak 4 | . 1 2 1 4 . . 3 To Critical Strikes 1 | . . . 1 . . . . Average Backups 5 | 2 5 7 7 4 3 4 4 Power 1 | 1 1 2 2 . 1 1 . Propulsion 1 | . . 1 1 1 1 2 1 Utility 1 | . 1 2 1 1 1 1 1 Weapon 1 | 1 1 1 2 1 . . 1 Tool/Special . | . . . . . . . . Unused Backups 16 | . 2 3 5 1 . . 5 Power 2 | . . 1 1 . . . . Propulsion . | . . . . . . . . Utility 6 | . 1 1 2 . . . 2 Weapon 8 | . 1 1 2 1 . . 3 Tool/Special . | . . . . . . . . Average Slot Usage (%) 89 | . 99 96 97 79 77 77 84 Engine 8 | . 14 14 11 4 . . 9 Core 3 | . . . . 5 11 11 3 Leg 29 | . 28 26 32 29 33 33 24 Device 8 | . 14 4 6 5 11 11 8 Storage 12 | . 14 14 11 11 11 11 14 Processor 3 | . . . 4 9 . . 8 Protection 3 | . . 9 10 . . . . Energy Gun 7 | . 13 4 6 4 11 11 6 Ballistic Gun 8 | . 14 13 15 11 . . . Launcher 1 | . . 9 . . . . . Impact Weapon 1 | . . . . . . . 7 Peak Build Rating 43 | 7 7 8 13 25 41 41 43 Average Rating 20 | 5 6 6 11 19 35 39 35 On Entrance 16 | . 7 7 7 12 23 41 31 Avg Prop Armor Cover (%) . | . . . . . . . . Naked Turns . | . . . . . . . . Heaviest Build 29 | 13 13 17 15 27 26 26 29 Greatest Support 77 | 20 20 20 33 36 73 73 77 Greatest Overweight (x) 1 | . . 1 . 1 . . . Average Overweight (x) . | . . . . . . . . Largest Inventory Capacity 8 | 8 8 8 8 8 8 8 8 Average Capacity 7 | 7 8 8 8 8 8 8 7 Most Carried 8 | 5 8 8 8 8 4 7 8 Average Carried 5 | 2 5 7 7 4 3 4 4 Final Capacity 8 | 8 8 8 8 8 8 8 5 Final Carried 8 | 2 8 8 8 2 4 7 5 Class Distribution -------------------- 66% | Mutant 32% | Scavenger-Mutant Dominant Class ---------------- Mutant | -10/Materials Mutant | -10/Mines Scavenger-Mutant | -9/Materials Scavenger-Mutant | -9/Mines Mutant | -9/Exiles Mutant | -8/Mines Mutant | -8/Materials Resources | -11 -10 -10 -9 -9 -9 -8 -8 ----------- Run | Yrd Mat Min Mat Min Exi Min Mat Matter Collected 1395 | 276 44 181 311 146 . 30 407 Remotely . | . . . . . . . . Salvage Created 1924 | 82 195 92 617 181 . . 757 Parts 106 | 5 8 17 41 8 . . 27 Haulers Intercepted . | . . . . . . . . Recyclers Shooed 1 | 1 . . . . . . . Parts Field Recycled . | . . . . . . . . Retrieved Matter . | . . . . . . . . Parts Self-Destructed . | . . . . . . . . Prevented . | . . . . . . . . Parts Restored . | . . . . . . . . Kills | -11 -10 -10 -9 -9 -9 -8 -8 ------- Run | Yrd Mat Min Mat Min Exi Min Mat Combat Hostiles Destroyed 51 | . 5 8 15 6 . . 17 Melee 3 | . . . . . . . 3 Guns 38 | . 5 2 15 5 . . 11 Cannons 1 | . . . . . . . 1 AOE 6 | . . 6 . . . . . Classes Destroyed 8 | 2 1 1 2 2 . . . Tunneler 2 | 1 . 1 . . . . . Recycler 2 | 1 . . 1 . . . . Swarmer 14 | . . 8 5 . . . 1 Grunt 24 | . 5 1 4 3 . . 11 Brawler 1 | . . . . 1 . . . Duelist 3 | . . . 1 1 . . 1 Sentry 9 | . . . 5 . . . 4 Assembled 1 | . . . . 1 . . . Best Kill Streak 6 | 1 3 5 3 2 . . 6 Combat Bots Only 6 | . 3 5 3 2 . . 6 Max Kills in Single Turn 3 | 1 1 3 2 1 . . 1 Gunslinging . | . . . . . . . . Exploded 2 | . . 2 . . . . . Melee 1 | . . . . . . . 1 Uniques/NPCs Destroyed . | . . . . . . . . Combat | -11 -10 -10 -9 -9 -9 -8 -8 -------- Run | Yrd Mat Min Mat Min Exi Min Mat Hostile Shots Fired 466 | . 41 40 82 48 . . 255 Missed 159 | . 11 11 26 21 . . 90 Hits 307 | . 30 29 56 27 . . 165 Melee 17 | . . . 4 7 . . 6 Projectile 290 | . 30 29 52 20 . . 159 AOE 19 | . . . . 19 . . . Critical Strikes 14 | . . . 7 1 . . 6 Damage Taken 4824 | . 328 314 806 890 . . 2486 Core 945 | . 42 42 134 168 . . 559 Absorbed by Shields . | . . . . . . . . Regen/Repaired (Parts) 88 | . . . 88 . . . . Core Remaining (%) 63 | 100 . 66 . . . 24 . Volleys Fired 175 | 6 19 16 49 31 . . 54 Largest 2 | 2 2 2 2 2 . . 2 Hottest 120 | 60 60 60 70 88 . . 120 Shots Fired 285 | 12 37 32 97 46 . . 61 Gun 270 | 12 37 24 97 46 . . 54 Cannon 7 | . . . . . . . 7 Launcher 8 | . . 8 . . . . . Special . | . . . . . . . . Kinetic 145 | 6 19 16 75 22 . . 7 Thermal 132 | 6 18 8 22 24 . . 54 Explosive 8 | . . 8 . . . . . Electromagnetic . | . . . . . . . . Robot Hit Streak 26 | 2 12 3 26 15 . . 13 Robot Miss Streak 6 | 2 3 6 3 3 . . 5 Penetration Max . | . . . . . . . . Secondary Targets 3 | . . . 3 . . . . Max Gunslinging Chain 1 | . . . 1 . . . . Shots Hit Robots 213 | 5 26 10 73 33 . . 66 Core Hits 105 | 3 10 12 33 13 . . 34 Critical Kills . | . . . . . . . . Critical Parts Destroyed 2 | . . . . . . . 2 Critical Strikes 11 | . . . 3 3 . . 5 Burn 8 | . . . 3 3 . . 2 Blast 1 | . . . . . . . 1 Smash 2 | . . . . . . . 2 Melee Attacks 21 | . . . . . . . 21 Impact 21 | . . . . . . . 21 Slashing . | . . . . . . . . Piercing . | . . . . . . . . Sneak Attacks . | . . . . . . . . Combat Hostiles . | . . . . . . . . Follow-up Attacks 2 | . . . . . . . 2 Damage Inflicted 3644 | 47 238 531 928 445 . . 1455 Guns 2611 | 47 238 83 928 441 . . 874 Cannons 124 | . . . . . . . 124 Explosions 448 | . . 448 . . . . . Melee 457 | . . . . . . . 457 Ramming 4 | . . . . 4 . . . Kinetic 1250 | 25 85 50 741 225 . . 124 Thermal 1485 | 22 153 33 187 216 . . 874 Explosive 448 | . . 448 . . . . . Electromagnetic . | . . . . . . . . Impact 457 | . . . . . . . 457 Slashing . | . . . . . . . . Piercing . | . . . . . . . . Highest Corruption 5 | . 1 1 3 5 5 5 . Average Corruption 3 | . 1 1 2 3 5 5 . Corruption Purged . | . . . . . . . . Corruption Blocked . | . . . . . . . . Effects 46 | . 1 4 7 8 14 12 . Message Errors 12 | . 1 2 2 1 5 1 . Matter Fused 10 | . . 1 1 . 2 6 . Heat Flow Errors 5 | . . . . 1 1 3 . Energy Discharges 6 | . . 1 1 2 . 2 . Parts Fused 1 | . . . . 1 . . . Data Loss (minor) 7 | . . . 2 . 5 . . Data Loss (major) 2 | . . . . 1 1 . . Misfires 1 | . . . . 1 . . . Alerts 2 | . . . 1 1 . . . Overload Shots . | . . . . . . . . Overflow Damage 180 | . . 64 . . . . 116 Projectiles . | . . . . . . . . Explosions 64 | . . 64 . . . . . Melee 116 | . . . . . . . 116 Knockbacks 3 | . . . . . . . 3 Impact . | . . . . . . . . Kinetic 3 | . . . . . . . 3 Secondary . | . . . . . . . . Self-Inflicted Damage 72 | . . 72 . . . . . Shots 4 | . . 4 . . . . . Rammed . | . . . . . . . . Targets Rammed 4 | . . . . 4 . . . Kicked 4 | . . . . 4 . . . Crushed . | . . . . . . . . Highest Temperature 430 | 40 94 40 165 148 148 244 430 Average Temperature 72 | 17 49 12 41 68 76 115 123 Received Heat Transfer 1575 | . 180 . 273 78 . . 1044 Effects 2 | . . . . . . . 2 Interference 1 | . . . . . . . 1 Matter Decay 1 | . . . . . . . 1 Siege Activations . | . . . . . . . . Martial Activations . | . . . . . . . . Shielding Activations . | . . . . . . . . Robots Disrupted . | . . . . . . . . Combat Hostiles . | . . . . . . . . Robots Corrupted 1 | . . . . . . . 1 Combat Hostiles 1 | . . . . . . . 1 Parts Fried 2 | . . . . . . . 2 Impact Corruptions 6 | . . . . . . . 6 Robots Melted 2 | . . . . 1 . . 1 Combat Hostiles 2 | . . . . 1 . . 1 Parts Melted 9 | . . . 1 3 . . 5 Heat Transferred 4261 | 50 350 75 777 851 . . 2158 Parts Sabotaged . | . . . . . . . . Parts Stolen . | . . . . . . . . Parts Stripped . | . . . . . . . . Power Chain Reactions . | . . . . . . . . Alert | -11 -10 -10 -9 -9 -9 -8 -8 ------- Run | Yrd Mat Min Mat Min Exi Min Mat Maximum Alert Level . | . . . . . . . . Low Security (%) 100 | 100 100 100 100 100 . 100 100 Level 1 . | . . . . . . . . Level 2 . | . . . . . . . . Level 3 . | . . . . . . . . Level 4 . | . . . . . . . . Level 5 . | . . . . . . . . High Security . | . . . . . . . . Max Security . | . . . . . . . . Peak Influence 193 | 5 50 155 183 51 . . 193 Initial 29 | . . 6 29 1 . . . Average 46 | . 13 64 91 7 . . 49 Influence Increases 1650 | 10 131 334 488 120 . . 567 Destroy 0b10 Robot/C 1100 | . 100 180 380 100 . . 340 Destroy 0b10 Robot/NC 20 | 10 . 5 5 . . . . Destroy Leader 220 | . 20 30 90 20 . . 60 Allied During Kill 12 | . . 4 8 . . . . Successful Hack 15 | . 11 . 4 . . . . Disable Machine 15 | . . 15 . . . . . Destroy Structure 58 | . . 55 1 . . . 2 Lose Combat Pursuer 210 | . . 45 . . . . 165 Influence Decreases 1466 | 10 114 276 559 110 14 . 383 Entered New Map 74 | . . 11 46 3 14 . . Time Decay 965 | 10 104 238 313 77 . . 223 Lost Part 250 | . 10 20 30 30 . . 160 Lost Ally 27 | . . 7 20 . . . . Purge Threat 150 | . . . 150 . . . . Squads Dispatched 6 | . 2 . 2 . . . 2 Investigation 1 | . 1 . . . . . . Extermination . | . . . . . . . . Reinforcement 5 | . 1 . 2 . . . 2 Assault . | . . . . . . . . Garrison . | . . . . . . . . Intercept . | . . . . . . . . Searches Triggered . | . . . . . . . . Construction Impeded . | . . . . . . . . Haulers Reinforced . | . . . . . . . . Active Scanning Responses . | . . . . . . . . Cargo Convoy Interrupts . | . . . . . . . . Stealth | -11 -10 -10 -9 -9 -9 -8 -8 --------- Run | Yrd Mat Min Mat Min Exi Min Mat Distress Signals 11 | . . . 3 2 . . 6 Communications Jammed . | . . . . . . . . Distress Signals . | . . . . . . . . Times Spotted 109 | . 7 12 27 16 . . 47 Peak Tracking Total 16 | . 4 3 5 16 . . 10 Tactical Retreats 10 | . . 2 . 2 . . 6 Traps | -11 -10 -10 -9 -9 -9 -8 -8 ------- Run | Yrd Mat Min Mat Min Exi Min Mat Traps Triggered 4 | . 2 . 2 . . . . Indirectly . | . . . . . . . . Trap Hack Attempts . | . . . . . . . . Triggered . | . . . . . . . . Disarmed 1 | . 1 . . . . . . Reprogrammed . | . . . . . . . . Reused . | . . . . . . . . Traps Extracted . | . . . . . . . . Installed . | . . . . . . . . Triggered . | . . . . . . . . Machines | -11 -10 -10 -9 -9 -9 -8 -8 ---------- Run | Yrd Mat Min Mat Min Exi Min Mat Machines Disabled 1 | . . 1 . . . . . Max in Single Turn 1 | . . 1 . . . . . Machines Repaired . | . . . . . . . . Machines Dismantled . | . . . . . . . . Machines Sabotaged . | . . . . . . . . Overloaded Fab Kills . | . . . . . . . . Hacking | -11 -10 -10 -9 -9 -9 -8 -8 --------- Run | Yrd Mat Min Mat Min Exi Min Mat Machines Accessed 15 | . 6 . 5 1 1 . 2 Terminals 10 | . 5 . 3 . . . 2 Fabricators . | . . . . . . . . Repair Stations 1 | . . . 1 . . . . Recycling Units 1 | . 1 . . . . . . Scanalyzers 1 | . . . 1 . . . . Garrison Access . | . . . . . . . . Total Hacks 34 | . 16 . 13 1 1 . 3 Successful 13 | . 3 . 7 1 1 . 1 Failed 20 | . 13 . 5 . . . 2 Catastrophic 3 | . 2 . 1 . . . . Database Lockouts 1 | . . . 1 . . . . Manual 9 | . 4 . 3 . 1 . 1 Terminals 25 | . 13 . 9 . . . 3 Fabricators . | . . . . . . . . Repair Stations 2 | . . . 2 . . . . Recycling Units 3 | . 3 . . . . . . Scanalyzers 2 | . . . 2 . . . . Garrison Access . | . . . . . . . . Terminal Hacks 10 | . 3 . 4 1 1 . 1 Open Door 1 | . . . . 1 . . . Branch Access Points 1 | . 1 . . . . . . Emergency Access Points 1 | . . . . . . . 1 Alert Level 1 | . . . 1 . . . . Unreport Threat 1 | . . . 1 . . . . Locate Traps 1 | . 1 . . . . . . Disarm Traps 1 | . 1 . . . . . . Zone Layout 2 | . . . 2 . . . . Proto ID Catalog 1 | . . . . . 1 . . Fabricator Hacks . | . . . . . . . . Repair Station Hacks 2 | . . . 2 . . . . Scan Component 1 | . . . 1 . . . . Repair 1 | . . . 1 . . . . Recycling Unit Hacks . | . . . . . . . . Scanalyzer 1 | . . . 1 . . . . Retrieve Study 1 | . . . 1 . . . . Garrison Access Hacks . | . . . . . . . . Unauthorized Hacks . | . . . . . . . . Terminals . | . . . . . . . . Fabricators . | . . . . . . . . Repair Stations . | . . . . . . . . Recycling Units . | . . . . . . . . Scanalyzers . | . . . . . . . . Garrison Access . | . . . . . . . . Data Cores Recovered . | . . . . . . . . Used . | . . . . . . . . Hacking Detections 8 | . 5 . 2 . . . 1 Full Trace Events 1 | . 1 . . . . . . Feedback Events . | . . . . . . . . Feedback Blocked . | . . . . . . . . Robot Schematics Acquired . | . . . . . . . . Robots Built . | . . . . . . . . Authchips . | . . . . . . . . Time . | . . . . . . . . Total Robot Build Rating . | . . . . . . . . Part Schematics Acquired . | . . . . . . . . Parts Built . | . . . . . . . . Authchips . | . . . . . . . . Time . | . . . . . . . . Total Part Build Rating . | . . . . . . . . Part Studies Acquired 1 | . . . 1 . . . . Parts Repaired 1 | . . . 1 . . . . Time 26 | . . . 26 . . . . Parts Recycled . | . . . . . . . . Recycled Matter . | . . . . . . . . Retrieved Matter . | . . . . . . . . Retrieved Components . | . . . . . . . . Parts Scanalyzed . | . . . . . . . . Part Schematics Acquired . | . . . . . . . . Parts Damaged . | . . . . . . . . Bothacking | -11 -10 -10 -9 -9 -9 -8 -8 ------------ Run | Yrd Mat Min Mat Min Exi Min Mat Used RIF Installer . | . . . . . . . . Robots Hacked . | . . . . . . . . Non-combat . | . . . . . . . . Combat . | . . . . . . . . Robot Hacks Applied . | . . . . . . . . Relay Couplers Released . | . . . . . . . . Fabnet Peak Effective % . | . . . . . . . . Robots Rewired . | . . . . . . . . Allies Hacked . | . . . . . . . . Hacks Repelled . | . . . . . . . . Allies | -11 -10 -10 -9 -9 -9 -8 -8 -------- Run | Yrd Mat Min Mat Min Exi Min Mat Total Allies 3 | . . 3 . . . . . Largest Group 3 | . . 3 1 . . . . Highest-Rated Group 40 | . . 40 16 . . . . Highest-Rated Ally 16 | . . 16 16 . . . . Total Orders . | . . . . . . . . Ally Attacks 28 | . . 8 20 . . . . Total Damage 244 | . . 38 206 . . . . Kills 5 | . . 1 4 . . . . Allies Corrupted . | . . . . . . . . Allies Melted . | . . . . . . . . Intel | -11 -10 -10 -9 -9 -9 -8 -8 ------- Run | Yrd Mat Min Mat Min Exi Min Mat Active Infowar (turns) 1299 | 23 493 162 621 . . . . Seismic 1299 | 23 493 162 621 . . . . Robot Analysis Total . | . . . . . . . . Derelict Logs Recovered 3 | . . 1 . 2 . . . Drone Launches 16 | . . . . 16 . . . Drone Recoveries . | . . . . . . . . Exploration | -11 -10 -10 -9 -9 -9 -8 -8 ------------- Run | Yrd Mat Min Mat Min Exi Min Mat Turns Passed 4374 | 169 493 565 1060 431 426 428 802 Spaces Moved 2688 | 97 260 396 468 226 409 423 409 Core 20 | 20 . . . . . . . Treads . | . . . . . . . . Legs 2668 | 77 260 396 468 226 409 423 409 Wheels . | . . . . . . . . Hover . | . . . . . . . . Flight . | . . . . . . . . Fastest Speed 50 | 50 120 120 105 110 100 100 90 Average Speed 110 | 105 120 124 114 119 102 100 99 Slowest Speed 190 | 120 120 190 120 190 110 100 110 Overloaded Moves . | . . . . . . . . Propulsion Burnouts . | . . . . . . . . Robots Hopped . | . . . . . . . . Potential Cave-ins . | . . . . . . . . Cave-ins Triggered . | . . . . . . . . Exploration Rate (%) 58 | 4 46 74 49 83 88 83 39 Regions Visited 7 Branch Regions 4 Pre-discovered Areas . | . . . . . . . . Known Exits Taken 1 | . 1 . . . . . . Unknown Exits Taken 6 | 1 . 1 1 1 1 1 . Scrap Searched 2 | . . 1 . . . 1 . Spaces Dug . | . . . . . . . . Terrain Destroyed 62 | . . 60 . . . . 2 Melee . | . . . . . . . . Projectile 2 | . . . . . . . 2 AOE 60 | . . 60 . . . . . Terrain Rammed . | . . . . . . . . Walls Destroyed . | . . . . . . . . Machines Disabled . | . . . . . . . . Actions | -11 -10 -10 -9 -9 -9 -8 -8 --------- Run | Yrd Mat Min Mat Min Exi Min Mat Total 3802 | 153 408 445 909 347 412 428 700 Wait 739 | 35 116 . 349 58 . . 181 Move 2681 | 96 259 395 467 225 408 422 409 Hop . | . . . . . . . . Pick Up 79 | 9 9 13 18 8 2 4 16 Fast Attach . | . . . . . . . . Attach 43 | 7 1 3 6 8 . 1 17 Detach . | . . . . . . . . Swap 27 | . 2 6 9 5 2 . 3 Drop 35 | . 2 12 11 8 . 1 1 Fire 175 | 6 19 16 49 31 . . 54 Melee 19 | . . . . . . . 19 Ram . | . . . . . . . . Kick 4 | . . . . 4 . . . Crush . | . . . . . . . . Escape Stasis . | . . . . . . . . Rewire . | . . . . . . . . Trap . | . . . . . . . . Miscellaneous . | . . . . . . . . Route ------- -11/Scrapyard -10/Materials (discovered 5 exits: *Mat x2 / *Min x2 / [*Sub]) -10/Mines (discovered 3 exits: *Mat x2 / [*Sub]) -9/Materials (discovered 4 exits: *Mat / *Min x2 / [*Sto]) -9/Mines (discovered 3 exits: *Mat x2 / *Exi) -9/Exiles -8/Mines -8/Materials History --------- Turn | Location | Event 13 | -11/Scrapyard | Discovered new exit (range 14) 170 | -11/Scrapyard | Entered Materials 304 | -10/Materials | Build established: Mutant 474 | -10/Materials | Discovered new exit (range 15) 504 | -10/Materials | Discovered new exit (range 15) 598 | -10/Materials | Discovered new exit (range 12) 611 | -10/Materials | Identified exit to Mines 663 | -10/Materials | Entered Mines 947 | -10/Mines | Learned Materials terminal intel 1002 | -10/Mines | Assisted by bots powering up and referring to "LRC-V3" 1054 | -10/Mines | Discovered new exit (range 5) 1078 | -10/Mines | Discovered new exit (range 8) 1114 | -10/Mines | Discovered new exit (range 13) 1228 | -10/Mines | Entered Materials 1228 | -9/Materials | Accompanied by 1 ally 1228 | -9/Materials | Evolved 2 slots: Propulsion x1, Utility x1 1229 | -9/Materials | Loaded intel: 12 terminal locations 1655 | -9/Materials | Discovered new exit (range 16) 1880 | -9/Materials | Central database locked down 1896 | -9/Materials | Discovered new exit (range 15) 1897 | -9/Materials | Build established: Scavenger-Mutant 1956 | -9/Materials | Repaired Aluminum Leg+ 2016 | -9/Materials | Discovered new exit (range 5) 2257 | -9/Materials | Discovered new exit (range 9) 2288 | -9/Materials | Entered Mines 2335 | -9/Mines | YI-UF0 nonchalantly dropped a Grenade Launcher on the ground 2346 | -9/Mines | Assembled infested the area 2439 | -9/Mines | Discovered new exit (range 13) 2455 | -9/Mines | Core integrity fell below 50% 2478 | -9/Mines | Found the Drone Emporium 2483 | -9/Mines | Found Prototype Device 2485 | -9/Mines | Identified Decoy Drone Bay 2497 | -9/Mines | Lost 4 parts (1p2n1w) 2528 | -9/Mines | Found a hidden stash of uninstalled traps 2545 | -9/Mines | Learned Materials garrison access intel 2555 | -9/Mines | Lost 10 allies 2611 | -9/Mines | Learned Materials garrison access intel 2618 | -9/Mines | Discovered new exit (range 8) 2715 | -9/Mines | Deemed a non-threat by the Exiles lab entrance 2715 | -9/Mines | Discovered new exit (range 5) 2719 | -9/Mines | Entered Exiles 2746 | -9/Exiles | Met 8R-AWN 2766 | -9/Exiles | Met EX-HEX 2803 | -9/Exiles | Met EX-BIN 2821 | -9/Exiles | Aligned with FarCom system 2822 | -9/Exiles | Given EX-Vault access code 2847 | -9/Exiles | Opened EX-Vault 2853 | -9/Exiles | Found Potential Leg 2855 | -9/Exiles | Found Potential Leg 2880 | -9/Exiles | Warned to stay clear of 0b10 Research branches 2907 | -9/Exiles | Met EX-DEC 2953 | -9/Exiles | Visited The Gauntlet 3135 | -9/Exiles | Discovered new exit (range 10) 3145 | -9/Exiles | Left Exiles lab with Potential Leg 3145 | -9/Exiles | Entered Mines 3163 | -8/Mines | Build established: Mutant 3562 | -8/Mines | Discovered new exit (range 11) 3573 | -8/Mines | Entered Materials 3573 | -8/Materials | Evolved 2 slots: Power x1, Utility x1 3574 | -8/Materials | Loaded intel: 1 garrison access location 4166 | -8/Materials | Lost 3 parts (1p2w) 4191 | -8/Materials | Core integrity fell below 50% 4285 | -8/Materials | Core integrity fell below 20% 4310 | -8/Materials | Lost 3 parts (2p1n) 4375 | -8/Materials | Destroyed by S-10 Pest with Light Assault Rifle Last Messages --------------- K-01 Serf collects debris. G-47 Trooper heat short circuits Lgt. Nuclear Core. G-47 Trooper destroyed. K-01 Serf collects debris. G-47 Trooper destroyed. K-01 Serf collects debris. Acquired Aluminum Leg+. Acquired 8 matter. Adv. Assault Cannon destroyed. Particle Gun melted. G-47 Trooper destroyed. Deuterium Engine destroyed. R-06 Scavenger collects Weight Redist. System. R-06 Scavenger collects Ion Engine. S-10 Pest destroyed. T-07 Excavator destroyed. Acquired 19 matter. Sml. Storage Unit destroyed. S-10 Pest destroyed. Map ----- +----------------------------------------------------+ | ?????????????# !! #???????????????????? | | ?????????????# !! #???????????????????? | | ?????????????# #???????????????????? | | ?????????????# ] ####????????? ????? | | ?????????????# #### +????????? !!??? | | ?????????????# ????# #####????????? ??? | | ?????????????#?????## #### ##????????????? ??? | | ????????????????????# ???# #?????????????? ???? | | ????????????????????#????# #?????????????# ???? | | ?????????????????????????# #?????????????# ???? | | ?????????????????????????# #?????????????# #???? | | ?????????????????????????# #?????????????# #???? | | ?????????????????????????# #?????????????# #???? | | ?????????????????????????# ##########????# +???? | | ?????????????????????????# #????# #???? | | ?????????????????????????#### #????# #???? | | ????????????????????????????# #????# #???? | | ????????????????????????????# #????# #???? | | ????????????????????????????# !! #????# #???? | | ????????????????????????????# !! #????# #???? | | ????????????????????????????# !! #????# #???? | | ????????????????????????????# #????# #???? | | ?????????????# #####+######## / ###### #???? | | ?????????????# w #???? | | ?????????????+ s #??## | | ?????????????# @ sg % =#? | | ?????????????????#########################b* #?! | | ???????????????????????????????# #g [# | | ?????????????# ????????#######?# # %!# | | ?????????##### ####### #?# ! +g + | | ???????? #?# * #% # "" | | ???????? ^ #?# " "" # # S"" | | ???????? #?# "R"" # #?"" | | ??????????????#/######## #?# """ ! # % #?### | | ???????????????????###### ##?# # #???? | | ???????????????????# %%# #??########### #???? | | ???????????????????# =#% #????????????# !#???? | | ???????????????????# [!%+%[ +????????????#!!%#???? | | ???????????????????# =# #????????????# !!#???? | | ????????????????"" / # +????????##### !#???? | | ???????????????""" #"" !# # ???????#!! #???? | | ???????????????"""?#"Y # # ??????#!! +???? | | ??????????????? ??#"" # #?##?????#[[ #???? | | ??????????????##???# # #????????# %#???? | | ???????????????????###### #????????#] #???? | | ????????????????????????# #????????# #???? | | ????????????????????????# #????????##### #???? | | ???????????????????????## ##???????????# #???? | | ???????????????????????# ############# #???? | | ???????????????????????# % #???? | +----------------------------------------------------+ Best States ------------- Heat Dissipation 45 Energy Generation 21 Energy Capacity 310 Matter Stores 500 Matter Capacity 500 Sight Range 16 Terrain Scan Density 10 Armor Coverage 150 Resistance: EX 25 Evasion (%) 56 Targeting Accuracy 6 Melee Accuracy 5 Salvage Targeting 2 Item Schematics ----------------- None Robot Schematics ------------------ None Fabricated ------------ Nothing Repaired ---------- Aluminum Leg | 2% | -9/Materials Studied --------- Aluminum Leg | -9/Materials | Hacked Alien Tech Used ----------------- None Achievements -------------- Release The Drones! Sprinter Challenges ------------ None Game ------ Seed ElectronTeslaBeacon Manual? 0 Play Time 00:38:26 Cumulative 19.3 hours Start 2026.09.06 @ 12:49:16 End 2026.09.06 @ 13:56:23 Sessions 1 Manual Loads 0 Difficulty Rogue Special Mode None Game No. 32 Rogue 30 Adventurer 2 Explorer 0 Win Type - Total 0 Types 0/0/0/0/0/0/0/0/0/0 Lore% 15 Gallery% 19 Achievement% 17 Wizard Run 0 Options --------- Layout 1 ASCII 1 Keyboard 0 Movement Numpad Keybinds 0 Fullscreen 2 Font 24/Smallcaps Map View 50x35 Zoom Use 0% Tactical HUD 0 Map Filters NONE Filters NONE Steam 1 RUN: e7356c28-758c-4d7b-a0b6-70721b4b0482